bitfinex/quotes_ETHUSD_20240821
["timestamp","ask_amount","ask_price","bid_price","bid_amount"]
[1724212431926,0.40321545,2596.8,2596.6,0.55]
[1724212432166,0.04042779,2596.7,2596.6,0.55]
[1724212432299,0.40321545,2596.8,2596.6,0.55]
[1724212432502,0.04042779,2596.7,2596.6,0.55]
[1724212432808,0.40321545,2596.8,2596.6,0.55]
[1724212433129,0.04042779,2596.7,2596.6,0.55]
[1724212433328,2.2914,2596.7,2596.6,0.55]
[1724212433511,2.33182779,2596.7,2596.6,0.55]
[1724212433718,0.04042779,2596.7,2596.6,0.55]
[1724212434349,0.04111315,2596.7,2596.6,0.55]
[1724212434553,0.40321545,2596.8,2596.6,0.55]
[1724212434845,0.04111315,2596.7,2596.6,0.55]
[1724212435218,0.40321545,2596.8,2596.6,0.55]
[1724212435632,0.04111315,2596.7,2596.6,0.55]
[1724212435948,0.40321545,2596.8,2596.6,0.55]
[1724212436322,0.04111315,2596.7,2596.6,0.55]
[1724212436653,0.40321545,2596.8,2596.6,0.55]
[1724212436953,0.04111315,2596.7,2596.6,0.55]
[1724212437155,0.40321545,2596.8,2596.6,0.55]
[1724212437557,0.04111315,2596.7,2596.6,0.55]
[1724212438056,0.40321545,2596.8,2596.6,0.55]
[1724212438562,0.04111315,2596.7,2596.6,0.55]
[1724212439053,0.40321545,2596.8,2596.6,0.55]
[1724212439353,0.04111315,2596.7,2596.6,0.55]
[1724212439860,0.40321545,2596.8,2596.6,0.55]
[1724212440229,0.04111315,2596.7,2596.6,0.55]
[1724212440568,0.40321545,2596.8,2596.6,0.55]
[1724212440741,0.04111315,2596.7,2596.6,0.55]
[1724212441061,0.40321545,2596.8,2596.6,0.55]
[1724212441412,0.04111315,2596.7,2596.6,0.55]
[1724212441818,0.40321545,2596.8,2596.6,0.55]
[1724212442226,0.04111315,2596.7,2596.6,0.55]
[1724212442711,0.40321545,2596.8,2596.6,0.55]
[1724212442956,0.04111315,2596.7,2596.6,0.55]
[1724212443158,0.40321545,2596.8,2596.6,0.55]
[1724212443617,0.04111315,2596.7,2596.6,0.55]
[1724212444014,2.68341545,2596.8,2596.4,0.55]
[1724212444210,0.04111315,2596.7,2596.4,0.55]
[1724212444614,2.68341545,2596.8,2596.4,0.55]
[1724212444869,0.04111315,2596.6,2596.4,0.55]
[1724212445011,2.951757,2596.8,2596.4,0.55]
[1724212445514,0.04111315,2596.7,2596.4,0.55]
[1724212445744,2.951757,2596.8,2596.4,0.55]
[1724212445913,2.34291315,2596.6,2596.4,0.55]
[1724212446125,2.3018,2596.6,2596.2,0.55]
[1724212450252,2.7662357,2596.6,2596.2,0.55]
[1724212450610,2.4695,2596.4,2596.2,0.55]
[1724212453362,0.041597,2596.3,2596.1,0.55]
[1724212453526,2.4695,2596.4,2596.1,0.55]
[1724212455336,2.80321576,2596.4,2596.1,0.55]
[1724212455528,2.80321576,2596.4,2595.9,0.55]
[1724212455760,0.041597,2596.3,2595.9,0.55]
[1724212459376,2.4695,2596.4,2595.9,0.55]
[1724212461574,0.07703148,2596.3,2595.9,0.55]
[1724212461772,2.2647,2596.2,2595.9,0.55]
[1724212465794,0.04113342,2596.1,2595.9,0.55]
[1724212466283,2.2518,2596.0,2595.9,0.55]
[1724212467288,2.2518,2596.0,2595.7,0.55]
[1724212476869,2.2518,2596.0,2595.8,1.671]
[1724212483251,2.2518,2596.0,2595.9,0.55]
[1724212483647,2.2922883,2596.0,2595.9,0.55]
[1724212483846,2.2922883,2596.0,2595.7,0.55]
[1724212488272,2.2922883,2596.0,2595.7,2.221]
[1724212493397,0.0404883,2596.0,2595.7,2.4431]
[1724212493691,0.0404883,2596.0,2595.9,4.0594]
[1724212493841,0.4032315,2596.2,2595.9,4.6094]
[1724212494177,0.4032315,2596.2,2596.1,1.671]
[1724212494336,0.4032315,2596.2,2596.1,2.221]
[1724212494534,0.4032315,2596.2,2596.1,2.73694]
[1724212496448,2.4615,2596.8,2596.1,2.73694]
[1724212496780,0.40322441,2596.6,2596.2,0.55]
[1724212501683,0.04041771,2596.5,2596.2,0.55]
[1724212503002,2.39161771,2596.5,2596.2,0.55]
[1724212504490,2.39161771,2596.5,2596.0,0.55]
[1724212505541,2.83820192,2596.5,2596.0,0.55]
[1724212510342,2.39161771,2596.5,2596.1,1.671]
[1724212510566,2.39161771,2596.5,2596.2,0.55]
[1724212510771,0.04041771,2596.5,2596.2,0.55]
[1724212510981,0.04041771,2596.5,2596.3,1.671]
[1724212511396,0.04041771,2596.5,2596.4,0.55]
[1724212511556,0.04041771,2596.5,2596.4,1.01889]
[1724212512075,2.472,2596.9,2596.4,1.01889]
[1724212512282,0.04092174,2596.5,2596.4,0.55]
[1724212512493,2.472,2596.9,2596.4,0.55]
[1724212512891,0.04092174,2596.8,2596.4,0.55]
[1724212521884,0.40322245,2597.0,2596.4,0.55]
[1724212522320,0.04108301,2596.9,2596.4,0.55]
[1724212532230,0.04108301,2596.9,2596.8,2.3774]
[1724212534733,0.04108301,2596.9,2596.7,1.671]
[1724212535236,0.04108301,2596.9,2596.6,2.4144]
[1724212535388,0.04108301,2596.9,2596.7,0.55]
[1724212541442,2.3704,2596.8,2596.7,0.55]
[1724212541887,2.41235975,2596.8,2596.7,0.55]
[1724212545112,0.04195975,2596.8,2596.7,0.55]
[1724212545266,0.04195975,2596.8,2596.5,0.55]
[1724212545460,2.76982245,2597.0,2596.5,0.55]
[1724212545692,0.04195975,2596.7,2596.5,0.55]
[1724212545893,2.76982245,2597.0,2596.5,0.55]
[1724212546095,0.04195975,2596.6,2596.5,0.55]
[1724212546278,2.76982245,2597.0,2596.5,0.55]
[1724212546480,0.04195975,2596.6,2596.5,0.55]
[1724212546768,0.04188921,2596.6,2596.5,0.55]
[1724212546987,2.76982245,2597.0,2596.5,0.55]
[1724212547187,0.04188921,2596.9,2596.5,0.55]
[1724212551319,0.04188921,2596.9,2596.6,1.671]
[1724212551480,0.04188921,2596.9,2596.8,1.671]
[1724212551687,0.04188921,2596.9,2596.8,2.221]
[1724212552567,0.04188921,2596.9,2596.8,0.55]
[1724212552811,0.04188921,2596.9,2596.7,0.55]
[1724212553020,0.04188921,2596.9,2596.7,1.0375]
[1724212564935,0.04188921,2596.9,2596.8,1.671]
[1724212565145,0.04188921,2596.9,2596.8,2.221]
[1724212569101,0.40322245,2597.0,2596.9,2.2595]
[1724212569307,0.40322245,2597.0,2596.9,2.8095]
[1724212569612,2.457,2597.6,2596.9,3.3063]
[1724212569802,2.86018695,2597.6,2597.0,2.221]
[1724212574052,2.86018695,2597.6,2597.2,1.671]
[1724212574231,2.86018695,2597.6,2597.3,0.55]
[1724212575445,2.86018695,2597.6,2597.1,0.55]
[1724212575622,2.86018695,2597.6,2597.2,0.2221]
[1724212575822,2.86018695,2597.6,2597.3,0.55]
[1724212576434,0.0426649,2597.5,2597.3,0.55]
[1724212578613,0.0426649,2597.5,2597.1,0.55]
[1724212579286,0.0426649,2597.5,2597.0,0.55]
[1724212579470,0.0426649,2597.5,2597.0,1.04773]
[1724212581582,2.3965,2597.4,2596.8,1.671]
[1724212582085,2.3965,2597.4,2596.7,9.60649346]
[1724212582481,0.04310809,2597.3,2596.7,9.60649346]
[1724212582659,2.3965,2597.4,2596.7,9.60649346]
[1724212582843,2.3965,2597.4,2596.8,3.34874935]
[1724212587476,0.04303759,2597.3,2596.8,3.34874935]
[1724212589673,0.04303759,2597.3,2597.0,1.671]
[1724212589877,0.04303759,2597.3,2597.1,0.55]
[1724212590080,2.73908695,2597.6,2597.1,0.55]
[1724212590283,0.04303759,2597.2,2597.1,0.55]
[1724212590514,2.73908695,2597.6,2597.1,1.0063]
[1724212590515,2.3359,2597.3,2597.1,1.0063]
[1724212590719,2.3359,2597.3,2597.1,0.55]
[1724212590896,0.04303759,2597.2,2597.1,0.55]
[1724212591081,0.04303759,2597.2,2596.9,0.55]
[1724212591279,2.3359,2597.3,2596.9,1.73704935]
[1724212591480,2.3359,2597.3,2596.9,1.72097032]
[1724212591682,0.04303759,2597.2,2596.9,1.72097032]
[1724212591881,2.3359,2597.3,2596.9,0.53392097]
[1724212592310,0.04303759,2597.2,2596.9,0.53392097]
[1724212592539,2.3359,2597.3,2596.9,0.53392097]
[1724212593031,0.04303759,2597.2,2596.9,0.53392097]
[1724212593385,2.3359,2597.3,2596.9,0.53392097]
[1724212593709,0.04303759,2597.2,2596.9,0.53392097]
[1724212593914,2.3359,2597.3,2596.9,0.53392097]
[1724212594116,0.04303759,2597.1,2596.9,0.53392097]
[1724212594312,2.3359,2597.3,2596.9,0.53392097]
[1724212594703,0.04303759,2597.2,2596.9,0.53392097]
[1724212595088,2.3359,2597.3,2596.9,0.53392097]
[1724212595531,0.04303759,2597.2,2596.9,0.53392097]
[1724212595688,2.3359,2597.3,2596.9,0.53392097]
[1724212595888,0.04303759,2597.1,2596.9,0.53392097]
[1724212596134,2.3359,2597.3,2596.9,0.53392097]
[1724212596602,0.04303759,2597.2,2596.9,0.53392097]
[1724212597104,2.3359,2597.3,2596.9,0.53392097]
[1724212597300,0.04303759,2597.1,2596.9,0.53392097]
[1724212597526,2.3359,2597.3,2596.9,0.53392097]
[1724212597909,0.04303759,2597.2,2596.9,0.53392097]
[1724212598105,2.3359,2597.3,2596.9,0.53392097]
[1724212598283,0.04303759,2597.1,2596.9,0.53392097]
[1724212598487,2.3359,2597.3,2596.9,0.53392097]
[1724212598734,0.04303759,2597.0,2596.9,0.53392097]
[1724212599035,2.3359,2597.3,2596.9,0.53392097]
[1724212599384,0.04304766,2597.2,2596.9,0.53392097]
[1724212599834,2.3359,2597.3,2596.9,0.53392097]
[1724212600219,0.04304766,2597.2,2596.9,0.53392097]
[1724212600528,2.3359,2597.3,2596.9,0.53392097]
[1724212600931,0.04304766,2597.2,2596.9,0.53392097]
[1724212601106,2.4112,2597.5,2597.0,1.671]
[1724212601289,2.4112,2597.5,2597.1,0.55]
[1724212601490,0.40318695,2597.6,2597.4,1.671]
[1724212601724,0.40318695,2597.6,2597.2,1.671]
[1724212601932,0.40318695,2597.6,2597.3,0.55]
[1724212606434,0.04308794,2597.5,2597.4,1.671]
[1724212606617,0.04308794,2597.5,2597.4,2.221]
[1724212607025,2.3883,2597.9,2597.4,2.221]
[1724212607222,2.7915453,2598.1,2597.6,1.671]
[1724212607420,2.7915453,2598.1,2597.7,0.55]
[1724212607753,0.04314836,2598.0,2597.7,0.55]
[1724212610363,0.04314836,2598.0,2597.8,1.671]
[1724212610515,0.04314836,2598.0,2597.9,0.55]
[1724212614247,0.04314836,2598.0,2597.7,0.55]
[1724212614442,0.4032453,2598.1,2597.7,0.55]
[1724212615023,2.339,2598.0,2597.7,0.55]
[1724212615559,2.339,2598.0,2597.6,0.55]
[1724212616843,2.339,2598.0,2597.6,2.221]
[1724212617047,2.339,2598.0,2597.6,3.47384935]
[1724212619365,2.339,2598.0,2597.6,2.221]
[1724212624041,2.339,2598.0,2597.6,0.55]
[1724212625569,2.339,2598.0,2597.7,1.671]
[1724212625775,2.339,2598.0,2597.8,0.55]
[1724212626639,2.339,2598.0,2597.6,0.55]
[1724212640219,0.07703148,2597.9,2597.4,7.30749346]
[1724212640454,2.3416,2597.8,2597.4,7.30749346]
[1724212640828,2.3416,2597.6,2597.4,7.30749346]
[1724212640999,2.75499076,2597.5,2596.8,1.671]
[1724212641199,0.07703148,2597.4,2596.8,1.671]
[1724212641461,0.07703148,2597.4,2596.6,1.671]
[1724212641462,2.4932,2597.3,2596.6,1.671]
[1724212641808,0.04409489,2597.2,2596.6,1.671]
[1724212642325,0.04409489,2597.2,2596.8,1.671]
[1724212642953,0.04409489,2597.1,2596.9,0.55]
[1724212643448,2.4932,2597.3,2596.9,0.55]
[1724212643651,0.04409489,2597.0,2596.9,0.55]
[1724212643971,2.4932,2597.3,2597.0,1.671]
[1724212644162,2.4932,2597.3,2597.1,0.55]
[1724212651645,0.04313832,2597.2,2597.1,0.55]
[1724212651981,2.4932,2597.3,2597.1,0.55]
[1724212652184,0.04313832,2597.2,2597.1,0.55]
[1724212652539,2.4932,2597.3,2597.1,0.55]
[1724212652740,0.04313832,2597.2,2597.1,0.55]
[1724212653138,2.4932,2597.3,2597.1,0.55]
[1724212653336,0.04313832,2597.2,2597.1,0.55]
[1724212653786,2.4932,2597.3,2597.1,0.55]
[1724212654011,0.04313832,2597.2,2597.1,0.55]
[1724212654384,2.4932,2597.3,2597.1,0.55]
[1724212654555,0.04313832,2597.2,2597.1,0.55]
[1724212655058,2.4932,2597.3,2597.1,0.55]
[1724212655260,0.04313832,2597.2,2597.1,0.55]
[1724212655645,2.4932,2597.3,2597.1,0.55]
[1724212655987,0.04313832,2597.2,2597.1,0.55]
[1724212656361,2.4932,2597.3,2597.1,0.55]
[1724212656564,0.04313832,2597.2,2596.9,0.55]
[1724212656963,2.4932,2597.3,2596.9,0.55]
[1724212657379,0.04313832,2597.2,2596.9,1.0721]
[1724212657690,2.4932,2597.3,2596.9,1.0721]
[1724212657903,0.04313832,2597.2,2596.9,1.0721]
[1724212658103,2.4932,2597.3,2596.9,1.0721]
[1724212658259,0.04313832,2597.2,2596.9,1.0721]
[1724212658456,2.4932,2597.3,2596.9,1.0721]
[1724212658660,0.04313832,2597.2,2596.9,1.0721]
[1724212658958,2.4932,2597.3,2596.9,1.0721]
[1724212659403,0.04313832,2597.2,2596.9,1.0721]
[1724212659773,2.4091,2597.5,2596.9,2.7431]
[1724212660010,2.4091,2597.5,2596.9,2.221]
[1724212660165,2.45223832,2597.4,2596.9,2.221]
[1724212664621,0.04313832,2597.4,2597.1,1.671]
[1724212664781,0.04313832,2597.4,2597.2,0.55]
[1724212665122,0.04302752,2597.3,2597.2,0.55]
[1724212665418,2.4837,2597.6,2597.2,0.55]
[1724212665617,0.04312823,2597.3,2597.2,0.55]
[1724212665816,2.4837,2597.6,2597.2,0.55]
[1724212666016,0.04312823,2597.3,2597.2,0.55]
[1724212666220,2.4837,2597.6,2597.2,0.55]
[1724212666424,0.04312823,2597.3,2597.2,0.55]
[1724212666594,2.4837,2597.6,2597.2,0.55]
[1724212666778,0.04312823,2597.3,2597.2,0.55]
[1724212666978,2.4837,2597.6,2597.2,0.55]
[1724212667177,0.04312823,2597.3,2597.2,0.55]
[1724212667374,2.4837,2597.6,2597.2,0.55]
[1724212667575,0.04312823,2597.3,2597.2,0.55]
[1724212667793,2.4837,2597.6,2597.2,0.55]
[1724212668003,0.04312823,2597.3,2597.2,0.55]
[1724212668206,2.4837,2597.6,2597.2,0.55]
[1724212668379,0.04312823,2597.3,2597.2,0.55]
[1724212668594,2.4837,2597.6,2597.2,0.55]
[1724212668793,0.04312823,2597.3,2597.2,0.55]
[1724212669070,2.4837,2597.6,2597.2,0.55]
[1724212669325,2.3703,2597.2,2597.0,0.55]
[1724212669511,2.3703,2597.2,2596.8,0.55]
[1724212675513,2.3703,2597.2,2596.8,1.37284873]
[1724212675714,2.3703,2597.2,2596.9,1.671]
[1724212675895,2.3703,2597.2,2597.0,0.55]
[1724212678832,2.3703,2597.7,2597.0,0.55]
[1724212679032,2.3703,2597.7,2597.1,1.671]
[1724212679033,0.44445863,2597.6,2597.1,1.671]
[1724212679334,0.48736529,2597.6,2597.2,0.55]
[1724212680202,0.04290666,2597.6,2597.2,0.55]
[1724212681357,0.04290666,2597.6,2597.3,1.671]
[1724212681584,0.04290666,2597.6,2597.4,0.55]
[1724212681994,0.04290666,2597.6,2597.2,0.55]
[1724212682269,2.3703,2597.6,2597.1,0.55]
[1724212682418,2.81475863,2597.6,2597.1,0.55]
[1724212682620,0.04290666,2597.5,2597.1,0.55]
[1724212685322,0.04290666,2597.5,2596.9,1.671]
[1724212685323,0.04290666,2597.5,2597.0,0.55]
[1724212686166,2.3703,2597.4,2597.0,0.55]
[1724212686919,0.04290666,2597.3,2597.0,0.55]
[1724212693298,2.2724,2597.2,2597.0,0.55]
[1724212694253,1.671,2597.7,2597.0,0.55]
[1724212694460,2.67882863,2597.6,2597.0,0.55]
[1724212694688,2.51439733,2597.6,2597.0,0.55]
[1724212694889,2.51439733,2597.6,2597.1,1.671]
[1724212695095,2.51439733,2597.6,2597.2,0.55]
[1724212696870,2.51439733,2597.6,2597.0,0.55]
[1724212700503,2.51439733,2597.6,2596.8,0.55]
[1724212700718,2.69303973,2597.5,2596.8,0.55]
[1724212700928,0.04311818,2597.4,2596.8,0.55]
[1724212701075,2.2745,2597.3,2596.8,0.55]
[1724212701469,2.2745,2597.3,2596.7,7.30749346]
[1724212701677,2.2745,2597.0,2596.3,2.4717]
[1724212702219,0.04294697,2596.9,2596.3,2.4717]
[1724212702513,2.2745,2597.0,2596.6,1.671]
[1724212702671,0.04292682,2596.9,2596.8,1.671]
[1724212702890,2.2745,2597.2,2596.8,2.221]
[1724212703073,2.2745,2597.2,2596.9,0.55]
[1724212703274,0.04269515,2597.1,2596.9,0.55]
[1724212703521,0.04269515,2597.1,2596.9,1.01927]
[1724212704193,2.67781279,2597.4,2596.9,1.01927]
[1724212704396,0.04269515,2597.0,2596.9,0.55]
[1724212704619,2.67781279,2597.4,2596.9,0.55]
[1724212704828,0.04269515,2597.0,2596.9,0.55]
[1724212704971,2.67781279,2597.4,2596.9,0.55]
[1724212705673,0.04269515,2597.3,2596.9,0.55]
[1724212707109,0.04269515,2597.3,2596.7,0.55]
[1724212710832,0.04269515,2597.3,2596.7,0.99782]
[1724212716035,0.04269515,2597.3,2596.8,1.66982111]
[1724212716395,0.04269515,2597.3,2596.9,0.55]
[1724212717738,0.04269515,2597.3,2596.8,0.55]
[1724212718987,2.4665,2597.2,2596.8,0.55]
[1724212719354,0.04263472,2597.1,2596.8,0.55]
[1724212720803,0.04263472,2597.1,2596.7,0.55]
[1724212728980,2.2637,2597.0,2596.7,0.55]
[1724212729187,2.30649589,2596.9,2596.5,3.0]
[1724212729501,2.30649589,2596.9,2596.4,7.30749346]
[1724212729502,2.2637,2596.8,2596.4,7.30749346]
[1724212729915,2.2637,2596.6,2596.4,7.30749346]
[1724212730128,2.2637,2596.6,2596.0,1.671]
[1724212730286,2.2637,2596.6,2596.0,3.876619]
[1724212730487,0.04268509,2596.5,2596.0,3.876619]
[1724212730685,0.04268509,2596.5,2596.2,1.671]
[1724212731399,0.04268509,2596.5,2596.3,0.55]
[1724212731801,0.04268509,2596.5,2596.4,1.671]
[1724212732025,2.2637,2596.7,2596.4,2.221]
[1724212732333,0.04238286,2596.5,2596.4,1.671]
[1724212732532,2.2637,2596.7,2596.5,0.55]
[1724212740773,2.78563938,2597.0,2596.6,1.671]
[1724212740977,0.04213102,2596.9,2596.7,0.55]
[1724212741273,0.04213102,2596.9,2596.8,1.74800976]
[1724212741559,0.04213102,2596.9,2596.8,2.221]
[1724212741771,2.3823,2597.2,2596.8,2.544772]
[1724212741910,0.04213102,2597.1,2596.9,0.55]
[1724212743416,0.04213102,2597.1,2596.7,2.221]
[1724212747270,2.4623,2597.0,2596.7,2.221]
[1724212747564,0.04274551,2596.9,2596.7,0.55]
[1724212748453,2.468,2596.8,2596.6,0.55]
[1724212749177,0.04274551,2596.7,2596.6,0.55]
[1724212749373,2.468,2596.8,2596.6,0.55]
[1724212749581,0.04274551,2596.7,2596.6,0.55]
[1724212749747,2.468,2596.8,2596.6,0.55]
[1724212749946,0.04274551,2596.7,2596.6,0.55]
[1724212750161,2.468,2596.8,2596.6,0.55]
[1724212750457,0.04274551,2596.7,2596.6,0.55]
[1724212750876,2.468,2596.8,2596.6,0.55]
[1724212751165,0.04274551,2596.7,2596.6,0.55]
[1724212751485,2.468,2596.8,2596.6,0.55]
[1724212751680,0.04274551,2596.7,2596.6,0.55]
[1724212751943,2.468,2596.8,2596.6,0.55]
[1724212752267,0.04274551,2596.7,2596.6,0.55]
[1724212752792,2.468,2596.8,2596.6,0.55]
[1724212753106,0.04274551,2596.7,2596.6,0.55]
[1724212753290,2.468,2596.8,2596.6,0.55]
[1724212753602,0.04274551,2596.7,2596.6,0.55]
[1724212753806,2.4054,2597.3,2596.6,0.55]
[1724212753807,2.4054,2597.1,2596.6,0.55]
[1724212753975,0.04274551,2597.0,2596.8,1.671]
[1724212754309,0.04274551,2597.0,2596.9,0.55]
[1724212755502,0.04274551,2597.0,2596.7,0.55]
[1724212756267,0.04274551,2597.0,2596.7,1.01325]
[1724212756868,2.4054,2597.1,2596.7,1.01325]
[1724212757608,0.04269515,2597.0,2596.7,1.01325]
[1724212757910,2.4054,2597.1,2596.7,1.01325]
[1724212763541,0.04269515,2597.0,2596.7,1.01325]
[1724212766837,0.04269515,2597.0,2596.8,1.671]
[1724212767140,2.3578,2597.3,2596.9,0.55]
[1724212767498,2.76108688,2597.5,2597.0,1.74801041]
[1724212767722,2.76108688,2597.5,2597.2,1.671]
[1724212767723,2.3578,2597.5,2597.2,1.671]
[1724212767927,2.3578,2597.5,2597.3,0.55]
[1724212769025,1.671,2598.0,2597.4,1.671]
[1724212769026,2.3734,2598.0,2597.4,1.671]
[1724212769230,2.82681589,2598.5,2597.8,1.671]
[1724212769231,2.3734,2598.5,2597.8,1.671]
[1724212769537,2.3734,2598.5,2597.5,3.08070013]
[1724212769538,2.3734,2598.5,2597.9,0.55]
[1724212769743,2.3734,2598.5,2597.9,2.221]
[1724212769913,0.96434,2598.4,2597.9,2.221]
[1724212771742,0.04287644,2598.3,2597.9,2.221]
[1724212772897,2.3302,2598.2,2597.9,0.55]
[1724212773127,2.3302,2598.2,2597.8,0.55]
[1724212773403,0.04287644,2598.1,2597.8,0.55]
[1724212784700,2.3302,2598.2,2597.8,0.55]
[1724212785204,0.04469885,2598.1,2597.8,0.55]
[1724212786118,0.04469885,2598.1,2597.9,1.671]
[1724212786320,3.0,2598.8,2598.0,0.55]
[1724212786321,2.2953,2598.3,2598.0,0.55]
[1724212789294,2.52483,2598.3,2598.0,0.55]
[1724212795113,2.52483,2598.3,2597.9,0.55]
[1724212795276,2.2953,2598.3,2597.7,0.55]
[1724212797414,2.2953,2598.3,2597.8,1.671]
[1724212797602,2.2953,2598.3,2597.9,0.55]
[1724212801917,2.2953,2598.3,2597.8,0.55]
[1724212803801,2.2953,2598.3,2597.5,7.30749346]
[1724212803802,2.4045,2598.2,2597.6,0.55]
[1724212804001,2.81205,2598.2,2597.6,0.55]
[1724212804419,2.3527,2597.8,2597.5,7.30749346]
[1724212804822,2.3527,2598.1,2597.5,8.97849346]
[1724212805900,2.3527,2598.1,2597.6,0.55]
[1724212806102,2.795825,2598.1,2597.6,0.55]
[1724212806347,2.3527,2598.1,2597.6,0.55]
[1724212807648,2.3527,2598.1,2597.7,1.671]
[1724212807953,2.3527,2598.1,2597.8,0.55]
[1724212808270,2.3527,2598.1,2597.9,1.671]
[1724212808466,2.4234,2598.3,2598.0,0.55]
[1724212810244,2.4757,2598.6,2598.1,1.671]
[1724212810414,2.4757,2598.6,2598.2,0.55]
[1724212810609,1.671,2598.6,2598.2,0.55]
[1724212810859,1.671,2598.6,2597.7,4.0475]
[1724212810860,2.4757,2598.5,2597.7,4.0475]
[1724212811159,2.4757,2598.3,2597.8,0.55]
[1724212812734,2.3168,2598.1,2597.8,0.55]
[1724212812929,0.07703148,2598.5,2597.1,8.11518999]
[1724212812930,2.3168,2597.9,2597.1,11.31729346]
[1724212813126,2.3168,2597.9,2597.1,1.671]
[1724212813127,1.671,2597.8,2597.1,1.671]
[1724212813326,2.3168,2597.7,2596.9,2.3388]
[1724212813543,2.3168,2597.7,2596.8,7.30749346]
[1724212813854,2.39383148,2597.7,2596.9,1.671]
[1724212814067,2.3168,2597.7,2596.9,4.02972935]
[1724212814266,2.3168,2597.7,2597.1,1.671]
[1724212814767,2.3168,2597.7,2597.1,4.0098]
[1724212815260,2.3168,2597.7,2597.1,1.671]
[1724212815969,2.3168,2597.7,2597.2,0.55]
[1724212816174,2.588358,2597.7,2597.2,0.55]
[1724212817820,0.04301823,2597.6,2597.2,0.55]
[1724212818137,2.588358,2597.7,2597.2,0.55]
[1724212818334,0.04255486,2597.5,2597.2,0.55]
[1724212818536,2.3168,2597.7,2597.2,0.55]
[1724212818759,0.04255486,2597.4,2597.2,0.55]
[1724212819076,2.3168,2597.7,2597.2,0.55]
[1724212819369,0.04255486,2597.6,2597.2,0.55]
[1724212820363,2.3168,2597.7,2597.2,0.55]
[1724212820531,0.04255486,2597.5,2597.2,0.55]
[1724212820732,2.3168,2597.7,2597.2,0.55]
[1724212820969,0.04255486,2597.4,2597.2,0.55]
[1724212821123,2.3168,2597.7,2597.2,0.55]
[1724212821324,0.04255486,2597.3,2597.2,0.55]
[1724212821524,2.3168,2597.7,2597.2,0.55]
[1724212821768,0.04255486,2597.3,2597.2,0.55]
[1724212821936,2.3168,2597.7,2597.2,0.55]
[1724212822137,0.04255486,2597.3,2597.2,0.55]
[1724212822324,2.3168,2597.7,2597.2,0.7721]
[1724212822526,0.04255486,2597.3,2597.2,0.55]
[1724212822729,2.3168,2597.7,2597.2,0.55]
[1724212823039,0.04255486,2597.3,2597.2,0.55]
[1724212823255,2.3168,2597.7,2597.2,0.55]
[1724212823631,0.04213179,2597.6,2597.3,1.671]
[1724212823833,0.04213179,2597.6,2597.4,0.55]
[1724212824032,2.3168,2597.7,2597.4,0.55]
[1724212824258,0.04213179,2597.5,2597.4,0.55]
[1724212824764,2.3168,2597.7,2597.4,0.55]
[1724212824934,0.04217209,2597.5,2597.4,0.55]
[1724212825134,2.3168,2597.7,2597.4,0.55]
[1724212825337,0.04217209,2597.5,2597.4,0.55]
[1724212825578,2.3168,2597.7,2597.4,0.7721]
[1724212825773,0.04217209,2597.5,2597.4,0.55]
[1724212826036,2.3426,2597.8,2597.4,0.55]
[1724212826684,0.04217209,2597.7,2597.4,0.55]
[1724212826883,0.04217209,2597.7,2597.5,1.671]
[1724212827177,2.3426,2598.1,2597.6,0.55]
[1724212829752,1.61111335,2598.1,2597.6,0.7721]
[1724212831903,1.671,2598.4,2597.6,3.0351]
[1724212832755,2.3023,2598.3,2597.6,3.0351]
[1724212835394,0.04295778,2598.2,2597.6,3.0351]
[1724212835565,0.04295778,2598.2,2597.7,0.07698163]
[1724212835774,0.04295778,2598.2,2597.8,0.55]
[1724212835987,2.3023,2598.3,2597.8,0.55]
[1724212836294,0.04292756,2598.1,2597.8,0.55]
[1724212836596,0.04228992,2598.0,2597.8,0.55]
[1724212836802,2.3023,2598.3,2597.8,0.90134082]
[1724212836971,0.04228992,2597.9,2597.8,0.90134082]
[1724212837294,2.3023,2598.3,2597.8,0.90134082]
[1724212837479,0.0423,2597.9,2597.8,0.90134082]
[1724212837981,2.3023,2598.3,2597.8,0.90134082]
[1724212838180,0.0423,2597.9,2597.8,0.90134082]
[1724212838398,3.0,2598.7,2597.8,0.9782937]
[1724212838399,2.3155,2598.5,2597.8,0.9782937]
[1724212838596,2.3155,2598.5,2597.9,2.2655]
[1724212838908,2.3155,2598.5,2598.0,0.55]
[1724212840267,2.3477,2598.7,2598.0,0.62696102]
[1724212840502,2.3477,2598.7,2598.1,0.4563461]
[1724212840720,2.3477,2598.7,2598.2,0.55]
[1724212841774,2.3477,2598.7,2598.2,2.9024]
[1724212841996,2.6026,2598.9,2598.3,1.671]
[1724212842197,0.15,2598.9,2598.4,1.00734]
[1724212843503,1.821,2598.9,2598.4,0.55]
[1724212843700,1.821,2598.9,2598.3,0.55]
[1724212846584,0.15,2598.9,2598.3,0.55]
[1724212848006,0.15,2598.9,2598.5,2.4006]
[1724212848205,0.15,2598.9,2598.6,0.24775624]
[1724212849699,0.15,2598.9,2598.7,0.55]
[1724212850185,0.04308564,2598.8,2598.7,0.55]
[1724212854536,0.04308564,2598.8,2598.7,0.626953]
[1724212854902,0.04308564,2598.8,2598.7,3.068653]
[1724212855106,0.04308564,2598.8,2598.7,3.56739392]